[Event "Titled Tuesday Blitz June 20 Late 2023"]
[White "Zaitsev, Alexander"]
[Black "Bogaudinov, Rushan"]
[WhiteFideId "4164490"]
[BlackFideId "4129288"]
[WhiteElo "2373"]
[BlackElo "1967"]
[Result "1/2-1/2"]
[Round "10"]
[TimeControl "180+2"]
[Date "2023.06.20"]
[WhiteClock "0:00:07"]
[BlackClock "0:00:10"]
[Board "74"]

1. e4 {[%clk 0:03:00]}  a6 {[%clk 0:02:29]} 2. d4 {[%clk 0:02:59]}  e6 {[%clk 0:02:28]} 3. Bd3 {[%clk 0:02:59]}  d5 {[%clk 0:02:28]} 4. Ne2 {[%clk 0:02:45]}  dxe4 {[%clk 0:02:24]} 5. Bxe4 {[%clk 0:02:46]}  Nf6 {[%clk 0:02:24]} 6. Bf3 {[%clk 0:02:47]}  c5 {[%clk 0:02:19]} 7. Be3 {[%clk 0:02:39]}  Nd5 {[%clk 0:01:58]} 8. Bc1 {[%clk 0:02:12]}  c4 {[%clk 0:01:55]} 9. O-O {[%clk 0:02:08]}  Be7 {[%clk 0:01:54]} 10. b3 {[%clk 0:02:07]}  b5 {[%clk 0:01:50]} 11. a4 {[%clk 0:02:06]}  Bb7 {[%clk 0:01:49]} 12. axb5 {[%clk 0:02:03]}  axb5 {[%clk 0:01:50]} 13. Rxa8 {[%clk 0:02:03]}  Bxa8 {[%clk 0:01:51]} 14. bxc4 {[%clk 0:01:50]}  bxc4 {[%clk 0:01:51]} 15. Na3 {[%clk 0:01:50]}  Qc8 {[%clk 0:01:41]} 16. c3 {[%clk 0:01:43]}  Nd7 {[%clk 0:01:28]} 17. Bxd5 {[%clk 0:00:57]}  Bxd5 {[%clk 0:01:24]} 18. Nf4 {[%clk 0:00:57]}  O-O {[%clk 0:01:22]} 19. Nxd5 {[%clk 0:00:54]}  exd5 {[%clk 0:01:23]} 20. Re1 {[%clk 0:00:54]}  Re8 {[%clk 0:01:15]} 21. Nc2 {[%clk 0:00:51]}  Nf6 {[%clk 0:01:09]} 22. Bg5 {[%clk 0:00:51]}  Ne4 {[%clk 0:00:53]} 23. Bxe7 {[%clk 0:00:51]}  Rxe7 {[%clk 0:00:54]} 24. Qf3 {[%clk 0:00:48]}  Re8 {[%clk 0:00:46]} 25. h4 {[%clk 0:00:44]}  h6 {[%clk 0:00:45]} 26. Nb4 {[%clk 0:00:43]}  Qa8 {[%clk 0:00:41]} 27. g3 {[%clk 0:00:37]}  Re6 {[%clk 0:00:39]} 28. Qg4 {[%clk 0:00:31]}  Rf6 {[%clk 0:00:35]} 29. Nxd5 {[%clk 0:00:22]}  Qxd5 {[%clk 0:00:29]} 30. Qxe4 {[%clk 0:00:23]}  Qxe4 {[%clk 0:00:26]} 31. Rxe4 {[%clk 0:00:24]}  Rf3 {[%clk 0:00:27]} 32. Re8+ {[%clk 0:00:23]}  Kh7 {[%clk 0:00:27]} 33. Rc8 {[%clk 0:00:20]}  Rxc3 {[%clk 0:00:26]} 34. h5 {[%clk 0:00:21]}  g6 {[%clk 0:00:26]} 35. Rc7 {[%clk 0:00:19]}  Kg7 {[%clk 0:00:25]} 36. hxg6 {[%clk 0:00:20]}  Kxg6 {[%clk 0:00:26]} 37. Kf1 {[%clk 0:00:20]}  Rc2 {[%clk 0:00:25]} 38. Kg2 {[%clk 0:00:20]}  f5 {[%clk 0:00:25]} 39. Kf3 {[%clk 0:00:20]}  Kg5 {[%clk 0:00:23]} 40. Rc5 {[%clk 0:00:21]}  Rc3+ {[%clk 0:00:23]} 41. Ke2 {[%clk 0:00:20]}  h5 {[%clk 0:00:23]} 42. d5 {[%clk 0:00:17]}  Rd3 {[%clk 0:00:21]} 43. Rxc4 {[%clk 0:00:14]}  Rxd5 {[%clk 0:00:21]} 44. Kf3 {[%clk 0:00:14]}  Rd3+ {[%clk 0:00:21]} 45. Ke2 {[%clk 0:00:14]}  Ra3 {[%clk 0:00:21]} 46. Rc5 {[%clk 0:00:14]}  Ra4 {[%clk 0:00:18]} 47. Kf3 {[%clk 0:00:14]}  Ra3+ {[%clk 0:00:18]} 48. Kg2 {[%clk 0:00:15]}  Ra4 {[%clk 0:00:18]} 49. Rd5 {[%clk 0:00:15]}  Rb4 {[%clk 0:00:18]} 50. Rd8 {[%clk 0:00:15]}  Ra4 {[%clk 0:00:17]} 51. Rg8+ {[%clk 0:00:15]}  Kf6 {[%clk 0:00:17]} 52. Kh3 {[%clk 0:00:16]}  Ra2 {[%clk 0:00:17]} 53. f4 {[%clk 0:00:13]}  Ra7 {[%clk 0:00:15]} 54. Kh4 {[%clk 0:00:10]}  Ra1 {[%clk 0:00:15]} 55. Kh3 {[%clk 0:00:07]}  Rh1+ {[%clk 0:00:15]} 56. Kg2 {[%clk 0:00:07]}  Ra1 {[%clk 0:00:15]} 57. Rg5 {[%clk 0:00:08]}  h4 {[%clk 0:00:13]} 58. gxh4 {[%clk 0:00:07]}  Ra4 {[%clk 0:00:13]} 59. Kg3 {[%clk 0:00:07]}  Ra3+ {[%clk 0:00:13]} 60. Kf2 {[%clk 0:00:06]}  Ra2+ {[%clk 0:00:13]} 61. Ke3 {[%clk 0:00:06]}  Ra3+ {[%clk 0:00:14]} 62. Kd4 {[%clk 0:00:05]}  Ra4+ {[%clk 0:00:14]} 63. Ke3 {[%clk 0:00:06]}  Ra3+ {[%clk 0:00:13]} 64. Kf2 {[%clk 0:00:06]}  Ra2+ {[%clk 0:00:12]} 65. Kg3 {[%clk 0:00:06]}  Ra3+ {[%clk 0:00:13]} 66. Kg2 {[%clk 0:00:07]}  Ra2+ {[%clk 0:00:12]} 67. Kh3 {[%clk 0:00:07]}  Ra4 {[%clk 0:00:10]} 68. Kg3 {[%clk 0:00:07]}  Ra3+ {[%clk 0:00:10]} 1/2-1/2


[Site "https://www.chess.com"]

[Event "Titled Tuesday Blitz June 20 Late 2023"]
[White "Castella Garcia, Fausto"]
[Black "Rios Escobar, Adan"]
[WhiteFideId "3501922"]
[BlackFideId "3403645"]
[WhiteElo "2245"]
[BlackElo "2463"]
[Result "1-0"]
[Round "10"]
[TimeControl "180+2"]
[Date "2023.06.20"]
[WhiteClock "0:00:04"]
[BlackClock "0:00:01"]
[Board "76"]

1. e4 {[%clk 0:03:00]}  c5 {[%clk 0:02:52]} 2. Nf3 {[%clk 0:02:59]}  d6 {[%clk 0:02:53]} 3. d4 {[%clk 0:02:58]}  cxd4 {[%clk 0:02:53]} 4. Nxd4 {[%clk 0:02:58]}  Nf6 {[%clk 0:02:54]} 5. Nc3 {[%clk 0:02:58]}  a6 {[%clk 0:02:54]} 6. Bg5 {[%clk 0:02:58]}  Nbd7 {[%clk 0:02:54]} 7. Qe2 {[%clk 0:02:57]}  g6 {[%clk 0:02:53]} 8. O-O-O {[%clk 0:02:57]}  Bg7 {[%clk 0:02:52]} 9. f4 {[%clk 0:02:57]}  O-O {[%clk 0:02:51]} 10. e5 {[%clk 0:02:51]}  dxe5 {[%clk 0:02:50]} 11. fxe5 {[%clk 0:02:52]}  Qa5 {[%clk 0:02:51]} 12. Nf3 {[%clk 0:02:27]}  Ng4 {[%clk 0:02:31]} 13. Bxe7 {[%clk 0:02:07]}  Re8 {[%clk 0:02:29]} 14. Bd6 {[%clk 0:01:56]}  Ndxe5 {[%clk 0:02:24]} 15. Rd5 {[%clk 0:01:55]}  b5 {[%clk 0:02:04]} 16. Nxe5 {[%clk 0:01:53]}  Nxe5 {[%clk 0:01:57]} 17. Bxe5 {[%clk 0:01:53]}  Bb7 {[%clk 0:01:40]} 18. Rc5 {[%clk 0:01:38]}  Qb6 {[%clk 0:01:11]} 19. b4 {[%clk 0:01:36]}  f6 {[%clk 0:01:07]} 20. Bc7 {[%clk 0:01:30]}  Qxc5 {[%clk 0:00:33]} 21. bxc5 {[%clk 0:01:26]}  Rxe2 {[%clk 0:00:32]} 22. Bxe2 {[%clk 0:01:27]}  f5 {[%clk 0:00:29]} 23. Kd2 {[%clk 0:01:17]}  Bxg2 {[%clk 0:00:26]} 24. Rg1 {[%clk 0:01:14]}  Bc6 {[%clk 0:00:24]} 25. a4 {[%clk 0:01:12]}  b4 {[%clk 0:00:21]} 26. Bc4+ {[%clk 0:01:12]}  Kh8 {[%clk 0:00:19]} 27. Nd5 {[%clk 0:01:12]}  Ra7 {[%clk 0:00:14]} 28. Bd6 {[%clk 0:01:07]}  Bxa4 {[%clk 0:00:14]} 29. Nxb4 {[%clk 0:01:01]}  a5 {[%clk 0:00:12]} 30. Nd3 {[%clk 0:01:01]}  Bc6 {[%clk 0:00:12]} 31. Ne5 {[%clk 0:00:58]}  Be8 {[%clk 0:00:08]} 32. Rb1 {[%clk 0:00:58]}  Ra8 {[%clk 0:00:05]} 33. Rb7 {[%clk 0:00:55]}  Rd8 {[%clk 0:00:05]} 34. Kc1 {[%clk 0:00:51]}  h6 {[%clk 0:00:01]} 35. Nf7+ {[%clk 0:00:40]}  Bxf7 {[%clk 0:00:01]} 36. Rxf7 {[%clk 0:00:38]}  a4 {[%clk 0:00:01]} 37. h4 {[%clk 0:00:34]}  a3 {[%clk 0:00:02]} 38. h5 {[%clk 0:00:33]}  gxh5 {[%clk 0:00:01]} 39. Rxf5 {[%clk 0:00:33]}  Ra8 {[%clk 0:00:02]} 40. Ba2 {[%clk 0:00:32]}  Bb2+ {[%clk 0:00:02]} 41. Kd2 {[%clk 0:00:30]}  Rb8 {[%clk 0:00:02]} 42. Rxh5 {[%clk 0:00:25]}  Re8 {[%clk 0:00:03]} 43. Rxh6+ {[%clk 0:00:23]}  Kg7 {[%clk 0:00:03]} 44. Re6 {[%clk 0:00:21]}  Rd8 {[%clk 0:00:02]} 45. c3 {[%clk 0:00:19]}  Ba1 {[%clk 0:00:01]} 46. Kc2 {[%clk 0:00:19]}  Bb2 {[%clk 0:00:02]} 47. Be5+ {[%clk 0:00:17]}  Kh7 {[%clk 0:00:02]} 48. c6 {[%clk 0:00:16]}  Rc8 {[%clk 0:00:02]} 49. c7 {[%clk 0:00:15]}  Ba1 {[%clk 0:00:02]} 50. Re7+ {[%clk 0:00:14]}  Kg6 {[%clk 0:00:02]} 51. Be6 {[%clk 0:00:13]}  Bxc3 {[%clk 0:00:02]} 52. Kxc3 {[%clk 0:00:12]}  Ra8 {[%clk 0:00:02]} 53. Ba2 {[%clk 0:00:10]}  Rc8 {[%clk 0:00:01]} 54. Rd7 {[%clk 0:00:10]}  Re8 {[%clk 0:00:01]} 55. Rd8 {[%clk 0:00:10]}  Rxe5 {[%clk 0:00:01]} 56. c8=Q {[%clk 0:00:10]}  Re7 {[%clk 0:00:01]} 57. Rg8+ {[%clk 0:00:09]}  Kh7 {[%clk 0:00:01]} 58. Qf8 {[%clk 0:00:08]}  Re3+ {[%clk 0:00:01]} 59. Kd4 {[%clk 0:00:07]}  Re4+ {[%clk 0:00:01]} 60. Kd5 {[%clk 0:00:05]}  Re5+ {[%clk 0:00:01]} 61. Kd6 {[%clk 0:00:05]}  Rd5+ {[%clk 0:00:01]} 62. Ke7 {[%clk 0:00:05]}  Re5+ {[%clk 0:00:02]} 63. Kf6 {[%clk 0:00:05]}  Rf5+ {[%clk 0:00:02]} 64. Ke6 {[%clk 0:00:04]}  Re5+ {[%clk 0:00:03]} 65. Kd6 {[%clk 0:00:02]}  Rd5+ {[%clk 0:00:03]} 66. Kc6 {[%clk 0:00:02]}  Rc5+ {[%clk 0:00:03]} 67. Qxc5 {[%clk 0:00:03]}  Kh6 {[%clk 0:00:01]} 68. Qg5+ {[%clk 0:00:03]}  Kh7 {[%clk 0:00:01]} 69. Qg7# {[%clk 0:00:04]} 1-0


[Site "https://www.chess.com"]

[Event "Titled Tuesday Blitz June 20 Late 2023"]
[White "Kielinkei"]
[Black "Cluke86"]
[WhiteElo "2448"]
[BlackElo "2274"]
[Result "1-0"]
[Round "10"]
[TimeControl "180+2"]
[Date "2023.06.20"]
[WhiteClock "0:00:44"]
[BlackClock "0:00:50"]
[Board "79"]

1. e4 {[%clk 0:03:00]}  d6 {[%clk 0:02:59]} 2. d4 {[%clk 0:03:00]}  Nf6 {[%clk 0:02:59]} 3. Nc3 {[%clk 0:02:59]}  e5 {[%clk 0:02:58]} 4. dxe5 {[%clk 0:02:58]}  dxe5 {[%clk 0:02:59]} 5. Qxd8+ {[%clk 0:02:58]}  Kxd8 {[%clk 0:03:00]} 6. Bg5 {[%clk 0:02:57]}  Nd7 {[%clk 0:02:55]} 7. O-O-O {[%clk 0:02:54]}  c6 {[%clk 0:02:55]} 8. Bc4 {[%clk 0:02:51]}  Ke8 {[%clk 0:02:54]} 9. a4 {[%clk 0:02:41]}  Bb4 {[%clk 0:02:45]} 10. Nge2 {[%clk 0:02:41]}  Nb6 {[%clk 0:02:35]} 11. Bb3 {[%clk 0:02:35]}  a5 {[%clk 0:02:31]} 12. f4 {[%clk 0:02:21]}  h6 {[%clk 0:02:15]} 13. fxe5 {[%clk 0:02:17]}  hxg5 {[%clk 0:02:12]} 14. exf6 {[%clk 0:02:17]}  gxf6 {[%clk 0:02:11]} 15. Rdf1 {[%clk 0:02:11]}  Ke7 {[%clk 0:02:08]} 16. Ng3 {[%clk 0:02:11]}  Bxc3 {[%clk 0:02:05]} 17. bxc3 {[%clk 0:02:12]}  Be6 {[%clk 0:01:57]} 18. Nf5+ {[%clk 0:02:11]}  Bxf5 {[%clk 0:01:48]} 19. Rxf5 {[%clk 0:02:11]}  Nd7 {[%clk 0:01:39]} 20. h3 {[%clk 0:02:05]}  Rh4 {[%clk 0:01:37]} 21. Re1 {[%clk 0:01:36]}  Re8 {[%clk 0:01:35]} 22. Rxa5 {[%clk 0:01:30]}  Kd6 {[%clk 0:01:30]} 23. Bxf7 {[%clk 0:01:23]}  Rexe4 {[%clk 0:01:29]} 24. Rxe4 {[%clk 0:01:18]}  Rxe4 {[%clk 0:01:30]} 25. Bh5 {[%clk 0:01:08]}  Nc5 {[%clk 0:01:21]} 26. Ra8 {[%clk 0:01:06]}  Rxa4 {[%clk 0:01:15]} 27. Rf8 {[%clk 0:01:05]}  Ke7 {[%clk 0:01:13]} 28. Re8+ {[%clk 0:00:59]}  Kd6 {[%clk 0:01:08]} 29. Re3 {[%clk 0:00:55]}  Re4 {[%clk 0:01:04]} 30. Rf3 {[%clk 0:00:49]}  Ke5 {[%clk 0:01:04]} 31. Bg6 {[%clk 0:00:46]}  f5 {[%clk 0:01:01]} 32. Rxf5+ {[%clk 0:00:45]}  Kd6 {[%clk 0:00:50]} 33. Rxc5 {[%clk 0:00:44]} 1-0


[Site "https://www.chess.com"]

[Event "Titled Tuesday Blitz June 20 Late 2023"]
[White "Hambleton, Aman"]
[Black "Melikhov, Evgeny V."]
[WhiteFideId "2606577"]
[BlackFideId "4122046"]
[WhiteElo "2511"]
[BlackElo "2158"]
[Result "1/2-1/2"]
[Round "10"]
[TimeControl "180+2"]
[Date "2023.06.20"]
[WhiteClock "0:00:08"]
[BlackClock "0:00:14"]
[Board "83"]

1. e4 {[%clk 0:03:00]}  e5 {[%clk 0:02:58]} 2. Nf3 {[%clk 0:02:57]}  Nc6 {[%clk 0:02:58]} 3. Bc4 {[%clk 0:02:56]}  Nf6 {[%clk 0:02:57]} 4. d3 {[%clk 0:02:54]}  Be7 {[%clk 0:02:57]} 5. O-O {[%clk 0:02:54]}  O-O {[%clk 0:02:56]} 6. Nc3 {[%clk 0:02:54]}  d6 {[%clk 0:02:56]} 7. h3 {[%clk 0:02:53]}  Be6 {[%clk 0:02:51]} 8. Re1 {[%clk 0:02:50]}  Qd7 {[%clk 0:02:49]} 9. Bg5 {[%clk 0:02:47]}  Na5 {[%clk 0:02:40]} 10. b3 {[%clk 0:02:38]}  Nxc4 {[%clk 0:02:36]} 11. dxc4 {[%clk 0:02:30]}  c6 {[%clk 0:02:34]} 12. Qd3 {[%clk 0:02:00]}  Rfe8 {[%clk 0:02:19]} 13. Nd2 {[%clk 0:01:56]}  Nh5 {[%clk 0:02:14]} 14. Bxe7 {[%clk 0:01:54]}  Qxe7 {[%clk 0:02:12]} 15. Kh2 {[%clk 0:01:49]}  Nf4 {[%clk 0:02:10]} 16. Qg3 {[%clk 0:01:31]}  Rad8 {[%clk 0:01:57]} 17. Nf1 {[%clk 0:01:23]}  d5 {[%clk 0:01:45]} 18. exd5 {[%clk 0:01:24]}  cxd5 {[%clk 0:01:44]} 19. cxd5 {[%clk 0:00:53]}  Bxd5 {[%clk 0:01:44]} 20. Nxd5 {[%clk 0:00:47]}  Rxd5 {[%clk 0:01:43]} 21. Ne3 {[%clk 0:00:47]}  Rd2 {[%clk 0:01:37]} 22. Nf5 {[%clk 0:00:45]}  Qf6 {[%clk 0:01:36]} 23. Qxf4 {[%clk 0:00:45]}  Rxc2 {[%clk 0:01:20]} 24. Qf3 {[%clk 0:00:12]}  h6 {[%clk 0:01:14]} 25. Re4 {[%clk 0:00:04]}  Kh7 {[%clk 0:01:11]} 26. Rae1 {[%clk 0:00:02]}  g6 {[%clk 0:01:06]} 27. Nd4 {[%clk 0:00:02]}  Qxf3 {[%clk 0:01:05]} 28. Nxf3 {[%clk 0:00:03]}  Rxf2 {[%clk 0:01:05]} 29. Rxe5 {[%clk 0:00:03]}  Rxe5 {[%clk 0:00:56]} 30. Rxe5 {[%clk 0:00:04]}  Rxa2 {[%clk 0:00:56]} 31. Re7 {[%clk 0:00:04]}  Kg8 {[%clk 0:00:55]} 32. Rxb7 {[%clk 0:00:05]}  a5 {[%clk 0:00:54]} 33. Rb5 {[%clk 0:00:05]}  a4 {[%clk 0:00:54]} 34. bxa4 {[%clk 0:00:04]}  Rxa4 {[%clk 0:00:54]} 35. Rb7 {[%clk 0:00:04]}  Re4 {[%clk 0:00:53]} 36. Kg3 {[%clk 0:00:04]}  Kg7 {[%clk 0:00:48]} 37. Kf2 {[%clk 0:00:04]}  g5 {[%clk 0:00:35]} 38. g4 {[%clk 0:00:02]}  Kg6 {[%clk 0:00:31]} 39. Rb6+ {[%clk 0:00:02]}  f6 {[%clk 0:00:31]} 40. Nd2 {[%clk 0:00:02]}  Rf4+ {[%clk 0:00:31]} 41. Kg3 {[%clk 0:00:02]}  h5 {[%clk 0:00:31]} 42. Nf1 {[%clk 0:00:02]}  Rxf1 {[%clk 0:00:30]} 43. Kg2 {[%clk 0:00:02]}  Rf4 {[%clk 0:00:29]} 44. Kg3 {[%clk 0:00:02]}  h4+ {[%clk 0:00:26]} 45. Kg2 {[%clk 0:00:02]}  Rc4 {[%clk 0:00:26]} 46. Rb2 {[%clk 0:00:02]}  Rc3 {[%clk 0:00:26]} 47. Rd2 {[%clk 0:00:01]}  Rg3+ {[%clk 0:00:26]} 48. Kh2 {[%clk 0:00:02]}  Kf7 {[%clk 0:00:23]} 49. Re2 {[%clk 0:00:02]}  Rf3 {[%clk 0:00:22]} 50. Kg2 {[%clk 0:00:02]}  Rf4 {[%clk 0:00:22]} 51. Re3 {[%clk 0:00:02]}  Ra4 {[%clk 0:00:22]} 52. Re2 {[%clk 0:00:03]}  Ra3 {[%clk 0:00:22]} 53. Kh2 {[%clk 0:00:03]}  Ra5 {[%clk 0:00:18]} 54. Kg2 {[%clk 0:00:03]}  f5 {[%clk 0:00:18]} 55. gxf5 {[%clk 0:00:04]}  Rxf5 {[%clk 0:00:17]} 56. Rb2 {[%clk 0:00:04]}  Kf6 {[%clk 0:00:17]} 57. Rb6+ {[%clk 0:00:04]}  Kg7 {[%clk 0:00:16]} 58. Rb7+ {[%clk 0:00:04]}  Kg6 {[%clk 0:00:15]} 59. Rb6+ {[%clk 0:00:05]}  Rf6 {[%clk 0:00:16]} 60. Rxf6+ {[%clk 0:00:05]}  Kxf6 {[%clk 0:00:16]} 61. Kf3 {[%clk 0:00:06]}  Kf5 {[%clk 0:00:16]} 62. Ke3 {[%clk 0:00:07]}  Ke5 {[%clk 0:00:15]} 63. Kf3 {[%clk 0:00:07]}  Kf5 {[%clk 0:00:15]} 64. Ke3 {[%clk 0:00:08]}  Ke5 {[%clk 0:00:14]} 65. Kf3 {[%clk 0:00:08]}  Kf5 {[%clk 0:00:14]} 1/2-1/2


[Site "https://www.chess.com"]

[Event "Titled Tuesday Blitz June 20 Late 2023"]
[White "Ozalp, Burak"]
[Black "Hajiyev, Kanan"]
[WhiteFideId "6314210"]
[BlackFideId "13404148"]
[WhiteElo "2106"]
[BlackElo "2115"]
[Result "1/2-1/2"]
[Round "10"]
[TimeControl "180+2"]
[Date "2023.06.20"]
[WhiteClock "0:00:04"]
[BlackClock "0:00:04"]
[Board "84"]

1. Nf3 {[%clk 0:03:00]}  d5 {[%clk 0:01:06]} 2. g3 {[%clk 0:02:56]}  c6 {[%clk 0:01:07]} 3. Bg2 {[%clk 0:02:57]}  Nf6 {[%clk 0:01:08]} 4. O-O {[%clk 0:02:57]}  g6 {[%clk 0:01:09]} 5. d3 {[%clk 0:02:51]}  Bg7 {[%clk 0:01:09]} 6. Nbd2 {[%clk 0:02:52]}  O-O {[%clk 0:01:10]} 7. e4 {[%clk 0:02:51]}  dxe4 {[%clk 0:01:11]} 8. dxe4 {[%clk 0:02:50]}  a5 {[%clk 0:01:11]} 9. c3 {[%clk 0:02:49]}  Qc7 {[%clk 0:01:12]} 10. Qc2 {[%clk 0:02:49]}  Na6 {[%clk 0:01:12]} 11. Nc4 {[%clk 0:02:46]}  Nd7 {[%clk 0:01:06]} 12. Rd1 {[%clk 0:02:43]}  b5 {[%clk 0:01:04]} 13. Bf4 {[%clk 0:02:15]}  e5 {[%clk 0:01:03]} 14. Rxd7 {[%clk 0:02:15]}  Bxd7 {[%clk 0:01:02]} 15. Ncxe5 {[%clk 0:02:15]}  g5 {[%clk 0:00:55]} 16. Nxd7 {[%clk 0:02:09]}  gxf4 {[%clk 0:00:54]} 17. Nxf8 {[%clk 0:02:09]}  Rxf8 {[%clk 0:00:52]} 18. Rd1 {[%clk 0:02:07]}  Nc5 {[%clk 0:00:47]} 19. e5 {[%clk 0:01:45]}  h6 {[%clk 0:00:47]} 20. Qf5 {[%clk 0:01:37]}  fxg3 {[%clk 0:00:45]} 21. hxg3 {[%clk 0:01:32]}  Re8 {[%clk 0:00:45]} 22. Re1 {[%clk 0:01:30]}  a4 {[%clk 0:00:41]} 23. a3 {[%clk 0:01:30]}  Qc8 {[%clk 0:00:32]} 24. Qxc8 {[%clk 0:01:27]}  Rxc8 {[%clk 0:00:32]} 25. Nd4 {[%clk 0:01:28]}  Nd3 {[%clk 0:00:27]} 26. Re2 {[%clk 0:00:55]}  Nxe5 {[%clk 0:00:27]} 27. f4 {[%clk 0:00:55]}  Nc4 {[%clk 0:00:28]} 28. Nxc6 {[%clk 0:00:55]}  Bf6 {[%clk 0:00:28]} 29. Bd5 {[%clk 0:00:48]}  Nb6 {[%clk 0:00:22]} 30. Bf3 {[%clk 0:00:37]}  Rc7 {[%clk 0:00:22]} 31. Re8+ {[%clk 0:00:35]}  Kg7 {[%clk 0:00:21]} 32. Rb8 {[%clk 0:00:35]}  Nc4 {[%clk 0:00:19]} 33. Rxb5 {[%clk 0:00:34]}  Nd2 {[%clk 0:00:19]} 34. Bg2 {[%clk 0:00:23]}  h5 {[%clk 0:00:19]} 35. Rxh5 {[%clk 0:00:20]}  Rb7 {[%clk 0:00:18]} 36. Nb4 {[%clk 0:00:20]}  Nc4 {[%clk 0:00:17]} 37. g4 {[%clk 0:00:14]}  Re7 {[%clk 0:00:14]} 38. g5 {[%clk 0:00:13]}  Re1+ {[%clk 0:00:13]} 39. Kf2 {[%clk 0:00:13]}  Bxc3 {[%clk 0:00:12]} 40. bxc3 {[%clk 0:00:13]}  Rc1 {[%clk 0:00:13]} 41. Be4 {[%clk 0:00:12]}  Rxc3 {[%clk 0:00:13]} 42. Rh7+ {[%clk 0:00:13]}  Kg8 {[%clk 0:00:14]} 43. Nd5 {[%clk 0:00:12]}  Rxa3 {[%clk 0:00:13]} 44. Nf6+ {[%clk 0:00:12]}  Kf8 {[%clk 0:00:14]} 45. Rh8+ {[%clk 0:00:12]}  Ke7 {[%clk 0:00:15]} 46. Re8+ {[%clk 0:00:12]}  Kd6 {[%clk 0:00:15]} 47. Bf5 {[%clk 0:00:12]}  Ra2+ {[%clk 0:00:16]} 48. Kg3 {[%clk 0:00:12]}  Ra3+ {[%clk 0:00:16]} 49. Kh4 {[%clk 0:00:11]}  Ne3 {[%clk 0:00:16]} 50. Bg4 {[%clk 0:00:10]}  Ng2+ {[%clk 0:00:15]} 51. Kh5 {[%clk 0:00:09]}  Nxf4+ {[%clk 0:00:16]} 52. Kh6 {[%clk 0:00:09]}  Rg3 {[%clk 0:00:11]} 53. Kg7 {[%clk 0:00:08]}  Kc6 {[%clk 0:00:08]} 54. Kxf7 {[%clk 0:00:08]}  a3 {[%clk 0:00:08]} 55. Ra8 {[%clk 0:00:07]}  Kb7 {[%clk 0:00:08]} 56. Ra4 {[%clk 0:00:06]}  Nd3 {[%clk 0:00:06]} 57. g6 {[%clk 0:00:06]}  Nc5 {[%clk 0:00:06]} 58. Rxa3 {[%clk 0:00:05]}  Rxa3 {[%clk 0:00:06]} 59. g7 {[%clk 0:00:05]}  Ra8 {[%clk 0:00:06]} 60. Ne8 {[%clk 0:00:05]}  Ne4 {[%clk 0:00:04]} 61. g8=Q {[%clk 0:00:04]}  Rxe8 {[%clk 0:00:03]} 62. Qxe8 {[%clk 0:00:05]}  Nd6+ {[%clk 0:00:03]} 63. Ke7 {[%clk 0:00:04]}  Nxe8 {[%clk 0:00:04]} 1/2-1/2


[Site "https://www.chess.com"]

[Event "Titled Tuesday Blitz June 20 Late 2023"]
[White "Prieto Aranguren, Alain"]
[Black "Bruedigam, Martin"]
[WhiteFideId "2268906"]
[BlackFideId "24608033"]
[WhiteElo "2209"]
[BlackElo "2331"]
[Result "0-1"]
[Round "10"]
[TimeControl "180+2"]
[Date "2023.06.20"]
[WhiteClock "0:00:29"]
[BlackClock "0:01:18"]
[Board "85"]

1. e4 {[%clk 0:03:00]}  e6 {[%clk 0:03:00]} 2. d4 {[%clk 0:03:00]}  d5 {[%clk 0:03:01]} 3. exd5 {[%clk 0:03:00]}  exd5 {[%clk 0:03:01]} 4. Bd3 {[%clk 0:03:01]}  Bd6 {[%clk 0:03:00]} 5. Nf3 {[%clk 0:03:01]}  h6 {[%clk 0:02:59]} 6. O-O {[%clk 0:03:02]}  Qf6 {[%clk 0:02:59]} 7. Re1+ {[%clk 0:03:01]}  Ne7 {[%clk 0:03:00]} 8. c3 {[%clk 0:03:01]}  O-O {[%clk 0:02:59]} 9. Nbd2 {[%clk 0:03:01]}  c6 {[%clk 0:02:58]} 10. Qc2 {[%clk 0:03:00]}  Bf5 {[%clk 0:02:57]} 11. Ne5 {[%clk 0:02:58]}  Bxd3 {[%clk 0:02:56]} 12. Qxd3 {[%clk 0:02:58]}  Bxe5 {[%clk 0:02:55]} 13. Rxe5 {[%clk 0:02:56]}  Nd7 {[%clk 0:02:55]} 14. Re1 {[%clk 0:02:54]}  Ng6 {[%clk 0:02:54]} 15. Nf3 {[%clk 0:02:54]}  Rfe8 {[%clk 0:02:55]} 16. Bd2 {[%clk 0:02:53]}  Nb6 {[%clk 0:02:47]} 17. Rxe8+ {[%clk 0:02:43]}  Rxe8 {[%clk 0:02:46]} 18. Re1 {[%clk 0:02:44]}  Rxe1+ {[%clk 0:02:46]} 19. Bxe1 {[%clk 0:02:44]}  Qe6 {[%clk 0:02:46]} 20. Qf1 {[%clk 0:02:39]}  Nc4 {[%clk 0:02:46]} 21. b3 {[%clk 0:02:37]}  Nd6 {[%clk 0:02:46]} 22. Bd2 {[%clk 0:02:32]}  Qe4 {[%clk 0:02:45]} 23. Qe1 {[%clk 0:02:28]}  Qc2 {[%clk 0:02:45]} 24. Ne5 {[%clk 0:02:21]}  Ne4 {[%clk 0:02:45]} 25. Nxg6 {[%clk 0:02:19]}  fxg6 {[%clk 0:02:45]} 26. Bf4 {[%clk 0:02:10]}  Qxc3 {[%clk 0:02:39]} 27. Qd1 {[%clk 0:02:08]}  Qb2 {[%clk 0:02:21]} 28. f3 {[%clk 0:01:51]}  Nc3 {[%clk 0:02:13]} 29. Qd2 {[%clk 0:01:42]}  Qxd2 {[%clk 0:02:08]} 30. Bxd2 {[%clk 0:01:42]}  Ne2+ {[%clk 0:02:09]} 31. Kf2 {[%clk 0:01:40]}  Nxd4 {[%clk 0:02:09]} 32. Be3 {[%clk 0:01:40]}  c5 {[%clk 0:01:49]} 33. b4 {[%clk 0:01:28]}  b6 {[%clk 0:01:46]} 34. a4 {[%clk 0:01:28]}  Ne6 {[%clk 0:01:42]} 35. a5 {[%clk 0:01:26]}  Kf7 {[%clk 0:01:41]} 36. axb6 {[%clk 0:01:26]}  axb6 {[%clk 0:01:41]} 37. Ke2 {[%clk 0:01:26]}  Ke7 {[%clk 0:01:39]} 38. Kd3 {[%clk 0:01:26]}  Kd7 {[%clk 0:01:39]} 39. bxc5 {[%clk 0:01:26]}  bxc5 {[%clk 0:01:38]} 40. Bc1 {[%clk 0:01:23]}  c4+ {[%clk 0:01:32]} 41. Kc3 {[%clk 0:01:22]}  Kd6 {[%clk 0:01:31]} 42. Ba3+ {[%clk 0:01:22]}  Kc6 {[%clk 0:01:28]} 43. Be7 {[%clk 0:01:15]}  Kb5 {[%clk 0:01:26]} 44. Bd6 {[%clk 0:01:09]}  d4+ {[%clk 0:01:27]} 45. Kc2 {[%clk 0:01:07]}  Kc6 {[%clk 0:01:23]} 46. Be5 {[%clk 0:01:07]}  Kd5 {[%clk 0:01:23]} 47. Bg3 {[%clk 0:01:06]}  h5 {[%clk 0:01:21]} 48. Kd2 {[%clk 0:01:02]}  g5 {[%clk 0:01:21]} 49. Ke2 {[%clk 0:01:01]}  g4 {[%clk 0:01:21]} 50. fxg4 {[%clk 0:01:00]}  hxg4 {[%clk 0:01:21]} 51. Kd2 {[%clk 0:00:58]}  Ke4 {[%clk 0:01:22]} 52. Ke2 {[%clk 0:00:58]}  c3 {[%clk 0:01:20]} 53. Kd1 {[%clk 0:00:57]}  d3 {[%clk 0:01:21]} 54. Be1 {[%clk 0:00:56]}  Kd4 {[%clk 0:01:21]} 55. Kc1 {[%clk 0:00:54]}  Kc4 {[%clk 0:01:18]} 56. Kd1 {[%clk 0:00:54]}  Nc5 {[%clk 0:01:18]} 57. Bh4 {[%clk 0:00:29]}  c2+ {[%clk 0:01:18]} 0-1


[Site "https://www.chess.com"]